bitfinex/quotes_SOLUSD_20240628
["timestamp","ask_amount","ask_price","bid_price","bid_amount"]
[1719537820572,6.7025,149.2,149.15,21.8645]
[1719537820764,15.16,149.21,149.15,6.7046]
[1719537820975,15.16,149.21,149.15,21.8646]
[1719537821179,6.7027,149.2,149.15,21.8646]
[1719537822589,15.16,149.21,149.12,6.1552]
[1719537822790,15.16,149.19,149.14,21.8649]
[1719537823162,21.8632,149.19,149.13,15.16]
[1719537823402,15.16,149.19,149.1,16.4169]
[1719537823568,21.8633,149.18,149.13,21.8652]
[1719537823892,15.16,149.18,149.14,6.705]
[1719537824377,21.8629,149.19,149.14,6.705]
[1719537824886,15.16,149.18,149.14,6.705]
[1719537825269,21.8633,149.18,149.13,15.16]
[1719537825465,21.8633,149.18,149.12,15.16]
[1719537825714,21.8633,149.18,149.12,21.8657]
[1719537826079,21.8633,149.18,149.13,6.7055]
[1719537826561,20.03986733,149.22,149.14,15.16]
[1719537826762,15.16,149.2,149.15,6.7045]
[1719537826982,20.0,149.19,149.15,6.7045]
[1719537828274,20.0,149.19,149.15,6.7046]
[1719537828591,26.7029,149.19,149.14,15.16]
[1719537828764,20.0,149.19,149.14,15.16]
[1719537829294,26.703,149.19,149.14,21.8649]
[1719537830273,41.863,149.19,149.14,21.8649]
[1719537830490,6.7034,149.18,149.14,15.16]
[1719537830892,6.7034,149.18,149.13,21.8655]
[1719537831090,6.7039,149.17,149.12,21.8658]
[1719537831301,6.7042,149.16,149.11,6.7063]
[1719537831463,15.6012,149.18,149.12,15.16]
[1719537831667,15.16,149.17,149.13,6.7053]
[1719537831868,22.3045,149.18,149.13,6.7054]
[1719537832079,37.4645,149.18,149.13,6.7054]
[1719537832696,6.7038,149.17,149.12,21.8659]
[1719537833006,15.16,149.17,149.13,6.7052]
[1719537833491,20.0,149.19,149.07,34.90971803]
[1719537833675,20.0,149.21,149.14,15.16]
[1719537833876,15.16,149.2,149.15,15.16]
[1719537834870,15.16,149.2,149.15,21.8643]
[1719537835270,20.0,149.21,149.16,15.16]
[1719537835499,0.03986733,149.22,149.17,15.16]
[1719537835898,20.03986733,149.22,149.19,6.7025]
[1719537836111,20.03986733,149.22,149.18,21.8632]
[1719537836565,0.03986733,149.22,149.18,21.8632]
[1719537838101,0.03986733,149.22,149.18,15.16]
[1719537839010,0.03986733,149.22,149.13,21.9869]
[1719537839216,21.90146733,149.22,149.17,21.8637]
[1719537839398,0.03986733,149.22,149.18,6.7032]
[1719537839809,0.03986733,149.22,149.18,21.8632]
[1719537840318,0.03986733,149.22,149.13,21.9869]
[1719537840625,0.03986733,149.22,149.17,21.8636]
[1719537841319,0.03986733,149.22,149.18,15.16]
[1719537841520,0.03986733,149.22,149.13,21.9869]
[1719537841817,0.03986733,149.22,149.19,15.16]
[1719537841991,0.03986733,149.22,149.2,6.7023]
[1719537842190,0.03986733,149.22,149.2,21.8623]
[1719537842592,0.03986733,149.22,149.2,15.16]
[1719537842822,0.03986733,149.22,149.2,21.8622]
[1719537843111,0.03986733,149.22,149.21,6.7019]
[1719537843704,0.03986733,149.22,149.21,21.8619]
[1719537844015,0.03986733,149.22,149.21,15.16]
[1719537844924,0.03986733,149.22,149.18,6.2813]
[1719537845213,0.03986733,149.22,149.21,21.8619]
[1719537846303,0.03986733,149.22,149.18,6.2813]
[1719537846493,0.03986733,149.22,149.21,15.16]
[1719537846699,0.03986733,149.22,149.21,21.8619]
[1719537848300,0.8479656,149.23,149.22,6.7015]
[1719537848505,22.7157,149.3,149.25,6.7001]
[1719537848704,22.7157,149.3,149.18,6.2813]
[1719537848705,6.6994,149.27,149.18,6.2813]
[1719537848889,6.6989,149.28,149.23,15.16]
[1719537849297,6.6989,149.28,149.19,20.0]
[1719537849298,16.0181,149.29,149.19,20.0]
[1719537849502,6.6993,149.27,149.24,15.16]
[1719537849712,6.6988,149.28,149.23,21.8609]
[1719537850013,16.0181,149.29,149.24,15.16]
[1719537850323,37.8765,149.29,149.24,15.16]
[1719537850703,31.1781,149.29,149.24,15.16]
[1719537850911,6.6988,149.28,149.24,15.16]
[1719537851625,6.6989,149.28,149.23,6.7009]
[1719537851796,6.6989,149.28,149.23,21.8609]
[1719537852121,6.6989,149.28,149.18,13.0113]
[1719537852122,6.6993,149.27,149.18,6.2813]
[1719537852316,15.16,149.28,149.23,6.701]
[1719537852627,15.16,149.28,149.24,6.7005]
[1719537852811,15.16,149.28,149.23,21.8609]
[1719537853131,22.7165,149.29,149.24,6.7003]
[1719537853425,37.8765,149.29,149.24,6.7003]
[1719537854224,20.0,149.31,149.18,6.2813]
[1719537854530,16.4453,149.33,149.26,21.8593]
[1719537854531,35.16,149.32,149.26,21.8593]
[1719537854728,6.6975,149.31,149.26,21.8593]
[1719537854899,20.0,149.3,149.27,6.6991]
[1719537855228,20.5893,149.35,149.3,6.6975]
[1719537855539,20.0,149.34,149.31,6.6974]
[1719537855769,20.0,149.34,149.3,6.6978]
[1719537855929,20.0,149.35,149.3,21.8577]
[1719537856214,15.16,149.35,149.27,6.6988]
[1719537856532,20.0,149.34,149.28,21.8586]
[1719537856738,15.16,149.34,149.29,6.6982]
[1719537856896,16.077,149.37,149.29,6.6982]
[1719537857092,15.16,149.34,149.3,6.6979]
[1719537857308,15.16,149.34,149.29,15.16]
[1719537857309,21.856,149.35,149.29,21.8582]
[1719537857517,6.6961,149.34,149.29,21.8583]
[1719537858133,21.856,149.35,149.29,21.8582]
[1719537858301,16.077,149.37,149.3,21.8575]
[1719537858302,6.6953,149.36,149.3,21.8575]
[1719537858717,21.8553,149.36,149.31,15.16]
[1719537858917,21.8553,149.36,149.31,21.8574]
[1719537859104,21.8553,149.36,149.31,15.16]
[1719537859316,6.6953,149.36,149.31,15.16]
[1719537859521,16.077,149.37,149.25,22.5655]
[1719537859706,0.8479656,149.38,149.33,15.16]
[1719537859904,36.0079656,149.38,149.32,21.8569]
[1719537860101,0.8479656,149.38,149.35,15.16]
[1719537860323,0.8479656,149.38,149.36,15.16]
[1719537860904,0.8479656,149.38,149.36,21.8548]
[1719537861336,0.8479656,149.38,149.33,6.2549]
[1719537861506,0.8479656,149.38,149.34,15.16]
[1719537861709,0.8479656,149.38,149.37,12.844]
[1719537861999,73.817715,149.39,149.38,6.6943]
[1719537863909,73.817715,149.39,149.38,56.8643]
[1719537864303,61.79171434,149.39,149.38,56.8643]
[1719537865329,21.0178,149.52,149.38,80.34]
[1719537865543,15.5885,149.52,149.48,6.6894]
[1719537865847,15.5885,149.52,149.42,16.412]
[1719537865848,15.5885,149.52,149.43,1.33794279]
[1719537866302,15.5885,149.52,149.46,6.6906]
[1719537866500,15.5885,149.52,149.43,1.33794279]
[1719537866704,15.5885,149.52,149.46,6.6903]
[1719537866938,22.2769,149.52,149.46,6.6903]
[1719537867435,15.5885,149.52,149.43,1.33794279]
[1719537867638,22.2769,149.52,149.43,1.33794279]
[1719537867938,6.6885,149.51,149.46,6.6906]
[1719537868312,22.2766,149.52,149.46,6.6906]
[1719537868515,15.5885,149.52,149.47,6.6901]
[1719537869339,15.5885,149.52,149.43,1.33794279]
[1719537869507,15.5885,149.52,149.44,6.3526]
[1719537869703,0.8479656,149.53,149.45,31.50773928]
[1719537869928,0.8479656,149.53,149.52,6.688]
[1719537870139,6.97216963,149.6,149.52,6.688]
[1719537870140,15.6885,149.64,149.52,52.2155]
[1719537870340,15.6885,149.64,149.6,6.6841]
[1719537870542,6.6831,149.63,149.52,52.2155]
[1719537870750,6.6837,149.62,149.56,6.6861]
[1719537871035,6.6837,149.62,149.57,6.6856]
[1719537871241,22.3716,149.64,149.57,6.6856]
[1719537871415,15.6885,149.64,149.59,6.6849]
[1719537871610,6.6833,149.63,149.58,6.6851]
[1719537872427,6.6833,149.63,149.53,30.17]
[1719537872633,6.6833,149.63,149.57,6.6854]
[1719537873148,22.3712,149.64,149.53,30.17]
[1719537873439,6.6832,149.63,149.57,6.6857]
[1719537873631,6.6836,149.62,149.57,6.6857]
[1719537873833,22.3715,149.64,149.53,30.17]
[1719537874031,22.3715,149.64,149.58,6.6853]
[1719537874340,15.6885,149.64,149.53,30.17]
[1719537874751,15.6885,149.64,149.52,22.0455]
[1719537874933,15.6885,149.64,149.53,30.17]
[1719537875425,0.03974688,149.67,149.57,6.4929]
[1719537875652,0.03974688,149.67,149.6,30.17]
[1719537876318,0.03974688,149.67,149.66,6.6818]
[1719537877738,0.03974688,149.67,149.57,6.6287]
[1719537878063,6.72144688,149.67,149.57,28.4505]
[1719537878220,0.03974688,149.67,149.57,28.4505]
[1719537878554,6.6823,149.65,149.57,6.6287]
[1719537878758,21.39734688,149.67,149.57,6.6287]
[1719537878927,21.39734688,149.67,149.52,36.3705]
[1719537879128,6.6844,149.61,149.52,36.3705]
[1719537879343,6.6844,149.61,149.57,16.7002]
[1719537879761,16.7077,149.64,149.49,30.17]
[1719537879918,6.6854,149.58,149.48,6.4165]
[1719537880254,6.6849,149.59,149.53,6.6875]
[1719537881316,6.6854,149.58,149.51,6.6881]
[1719537881624,6.6854,149.58,149.52,6.6876]
[1719537882360,15.0497,149.59,149.53,1.33737714]
[1719537882577,5.63774688,149.67,149.53,1.33737714]
[1719537882578,16.0127,149.63,149.53,1.33737714]
[1719537882731,16.0127,149.63,149.49,20.0]
[1719537883068,6.6844,149.61,149.49,20.0]
[1719537883243,16.0127,149.63,149.59,6.6848]
[1719537883437,16.0127,149.63,149.6,6.6844]
[1719537883638,12.31904688,149.67,149.61,6.6839]
[1719537883943,5.63774688,149.67,149.51,33.88]
[1719537884138,5.63774688,149.67,149.61,6.6836]
[1719537884457,12.31944688,149.67,149.61,6.6836]
[1719537884660,6.6819,149.66,149.61,6.6836]
[1719537885038,5.63774688,149.67,149.54,6.0905]
[1719537885230,0.8479656,149.68,149.56,39.9705]
[1719537885432,0.8479656,149.68,149.57,20.0]
[1719537885665,0.8479656,149.68,149.57,42.8743]
[1719537886564,7.5288656,149.68,149.57,42.8743]
[1719537886767,0.8479656,149.68,149.57,42.8743]
[1719537886932,0.8479656,149.68,149.58,0.63918577]
[1719537887541,0.8479656,149.68,149.58,25.63918577]
[1719537887858,0.8479656,149.68,149.59,36.1564]
[1719537888363,0.8479656,149.68,149.6,1.3359275]
[1719537888660,0.8479656,149.68,149.61,6.1957]
[1719537888864,6.56e-05,149.68,149.62,20.0]
[1719537893933,6.56e-05,149.68,149.57,29.505]
[1719537894151,6.56e-05,149.68,149.58,20.0]
[1719537894365,6.56e-05,149.68,149.57,29.505]
[1719537894675,6.56e-05,149.68,149.57,6.6307]
[1719537894959,6.56e-05,149.68,149.57,22.0508]
[1719537895459,6.6809656,149.68,149.57,22.0508]
[1719537895665,6.56e-05,149.68,149.57,22.0508]
[1719537895841,6.56e-05,149.68,149.57,15.4201]
[1719537896030,6.6826,149.65,149.57,15.4201]
[1719537896440,6.6826,149.65,149.53,6.6029]
[1719537896654,6.6828,149.64,149.54,6.6826]
[1719537897345,6.56e-05,149.68,149.54,6.6826]
[1719537897567,6.6822,149.66,149.54,6.6826]
[1719537897875,6.56e-05,149.68,149.54,6.6826]
[1719537898539,6.6815,149.67,149.55,1.33601185]
[1719537898740,6.6818,149.66,149.54,6.6826]
[1719537899239,6.56e-05,149.68,149.54,6.6826]
[1719537899459,6.56e-05,149.68,149.55,20.0]
[1719537899648,6.6810656,149.68,149.55,20.0]
[1719537899845,6.56e-05,149.68,149.55,20.0]
[1719537900041,6.6814,149.67,149.55,20.0]
[1719537900260,6.56e-05,149.68,149.55,20.0]
[1719537900566,6.6813656,149.68,149.55,20.0]
[1719537900780,6.56e-05,149.68,149.55,20.0]
[1719537901565,6.56e-05,149.68,149.58,23.0016]
[1719537901775,6.56e-05,149.68,149.59,20.0]
[1719537902565,6.56e-05,149.68,149.54,6.6826]
[1719537902566,6.56e-05,149.68,149.54,28.7206]
[1719537902781,6.5942,149.65,149.54,13.3022]
[1719537902981,15.8528,149.67,149.54,13.3022]
[1719537903749,6.56e-05,149.68,149.54,13.3022]
[1719537903951,6.6813656,149.68,149.54,13.3022]
[1719537904269,6.56e-05,149.68,149.54,13.3022]
[1719537904869,6.6817,149.67,149.54,13.3022]
[1719537905389,6.56e-05,149.68,149.54,13.3022]
[1719537905569,6.6814,149.67,149.54,13.3022]
[1719537906272,6.56e-05,149.68,149.54,13.3022]
[1719537906470,6.56e-05,149.68,149.55,15.2786]
[1719537906869,6.56e-05,149.68,149.55,35.5086]
[1719537907093,6.56e-05,149.68,149.57,40.4476]
[1719537907389,6.56e-05,149.68,149.57,6.5676]
[1719537907987,6.6811656,149.68,149.57,6.5676]
[1719537908187,6.6813,149.67,149.57,6.5676]
[1719537908600,6.6822,149.65,149.57,6.5676]
[1719537908791,16.5739,149.67,149.57,6.5676]
[1719537909097,23.2553,149.67,149.57,6.5676]
[1719537909270,16.5739,149.67,149.57,6.5676]
[1719537909593,16.5739,149.67,149.55,15.2786]
[1719537909771,6.6833,149.63,149.55,15.2786]
[1719537910274,6.6826,149.65,149.55,15.2786]
[1719537910592,32.8971,149.66,149.55,15.2786]
[1719537910760,26.2153,149.66,149.55,15.2786]
[1719537910964,6.6832,149.63,149.55,15.2786]
[1719537911177,26.2153,149.66,149.55,15.2786]
[1719537911376,16.5739,149.67,149.55,15.2786]
[1719537911577,6.56e-05,149.68,149.55,15.2786]
[1719537911780,6.6809656,149.68,149.56,20.0]
[1719537911988,6.6814,149.67,149.56,20.0]
[1719537912370,6.56e-05,149.68,149.56,20.0]
[1719537912576,6.56e-05,149.68,149.57,6.4324]
[1719537913588,6.6813656,149.68,149.57,6.4324]
[1719537913793,6.56e-05,149.68,149.57,6.4324]
[1719537914877,6.56e-05,149.68,149.58,20.0]
[1719537915072,6.56e-05,149.68,149.59,16.5971]
[1719537915479,6.56e-05,149.68,149.6,6.155]
[1719537915680,6.56e-05,149.68,149.61,20.0]
[1719537915893,6.6751,149.81,149.75,6.6773]
[1719537916198,0.8479656,149.83,149.7,54.11]
[1719537916498,0.8479656,149.83,149.71,42.10732506]
[1719537916697,0.8479656,149.83,149.82,6.6746]
[1719537917472,0.8479656,149.83,149.82,29.290247]
[1719537917896,7.81101538,149.98,149.82,76.495647]
[1719537918102,0.8479656,149.98,149.83,20.0]
[1719537918296,0.8479656,149.98,149.96,6.6682]
[1719537918799,0.8479656,149.98,149.86,33.88]
[1719537919092,0.8479656,149.98,149.89,6.6715]
[1719537919093,6.6684,149.96,149.89,6.6715]
[1719537919268,6.6683,149.97,149.9,6.671]
[1719537919467,6.6685,149.96,149.82,56.495647]
[1719537919697,34.7279656,149.98,149.82,22.615647]
[1719537919904,6.672,149.88,149.82,6.6746]
[1719537920199,16.6746,149.93,149.81,6.6751]
[1719537920401,6.6722,149.88,149.78,29.088647]
[1719537920605,6.6725,149.87,149.78,6.473]
[1719537920801,16.6782,149.9,149.78,6.6762]
[1719537920994,20.0,149.86,149.78,6.6762]
[1719537921184,15.6142,149.94,149.71,8.40712506]
[1719537921386,6.671,149.91,149.83,6.6742]
[1719537921587,20.0,149.93,149.74,133.88]
[1719537921899,0.8479656,149.98,149.74,33.88]
[1719537922098,16.6714,149.96,149.75,0.38688079]
[1719537922595,6.6693,149.94,149.88,6.6716]
[1719537922983,6.6698,149.93,149.87,6.6724]
[1719537923383,0.8479656,149.98,149.88,6.6719]
[1719537923972,16.6705,149.97,149.78,15.78]
[1719537924173,20.0,149.96,149.79,20.0]
[1719537924499,6.6701,149.93,149.79,20.0]
[1719537924702,16.6736,149.94,149.78,15.78]
[1719537925002,20.0,149.93,149.73,33.88]
[1719537925301,6.6724,149.87,149.81,6.675]
[1719537925499,20.0,149.92,149.72,35.78]
[1719537925699,16.309,149.91,149.72,35.78]
[1719537926005,6.9668012,150.08,149.81,115.7145]
[1719537926201,59.11732934,150.16,149.97,6.668]
[1719537926384,6.6627,150.09,149.97,6.668]
[1719537926591,17.5004656,150.13,149.97,6.668]
[1719537926794,0.8479656,150.13,149.97,6.668]
[1719537927202,6.6623,150.1,149.97,6.668]
[1719537927384,0.8479656,150.13,149.97,6.668]
[1719537927584,0.8479656,150.13,149.97,33.374104]
[1719537928103,6.6653,150.03,149.97,26.706104]
[1719537928312,6.6654,150.03,149.97,33.374104]
[1719537928606,47.04,150.12,149.97,6.668]
[1719537928607,6.6639,150.07,149.97,6.668]
[1719537928810,6.6643,150.06,149.97,6.668]
[1719537929202,42.5007656,150.13,149.97,6.668]
[1719537929203,17.5007656,150.13,149.97,6.668]
[1719537929707,6.6631,150.08,149.97,6.668]
[1719537930014,17.5007656,150.13,149.97,6.668]
[1719537930216,6.6633,150.08,149.97,6.668]
[1719537930516,6.6639,150.07,149.97,6.668]
[1719537930687,17.5007656,150.13,149.97,6.668]
[1719537930883,0.8479656,150.13,149.97,6.668]
[1719537931313,0.8479656,150.13,149.98,100.0]
[1719537931494,0.8479656,150.13,149.99,120.0]
[1719537931691,0.8479656,150.13,149.99,121.87382049]
[1719537931890,0.8479656,150.13,150.02,100.0]
[1719537932195,0.8479656,150.13,150.08,6.6627]
[1719537932389,0.8479656,150.13,150.09,1.33205489]
[1719537932804,0.8479656,150.13,150.05,1.33215841]
[1719537933008,0.8479656,150.13,150.09,6.6622]
[1719537933206,0.8479656,150.13,150.1,1.33203854]
[1719537933708,0.8479656,150.13,150.08,6.663]
[1719537933913,0.8479656,150.13,150.0,1.33212535]
[1719537934294,22.4865656,150.13,150.0,1.33212535]
[1719537934615,39.1388656,150.13,149.97,1.33264992]
[1719537934788,6.665,150.04,149.97,8.00024992]
[1719537934988,6.663,150.09,150.03,6.6651]
[1719537935392,16.1254656,150.13,149.96,16.657]
[1719537935592,16.1254656,150.13,150.04,6.6644]
[1719537935593,6.6622,150.1,150.04,6.6644]
[1719537935819,20.0,150.12,149.96,16.657]
[1719537935987,16.1254656,150.13,149.97,1.87407038]
[1719537936189,20.0,150.12,149.97,1.87407038]
[1719537936398,20.0,150.12,150.01,6.6661]
[1719537936704,20.0,150.12,149.96,16.657]
[1719537936705,6.6649,150.04,150.02,1.33199097]
[1719537937016,20.0,150.12,149.96,16.657]
[1719537937017,16.6568,150.09,149.97,1.33288555]
[1719537937317,20.0,150.08,149.97,1.33288555]
[1719537937709,32.7784656,150.13,149.97,1.33288555]
[1719537938007,20.0,150.12,149.97,1.33288555]
[1719537938404,6.6626,150.09,150.03,6.6649]
[1719537938589,6.6626,150.09,150.04,1.33258711]
[1719537938796,6.664,150.06,150.0,6.6666]
[1719537939015,20.0,150.12,150.01,1.33277294]
[1719537939199,20.0,150.12,149.97,1.33260801]
[1719537939509,26.6614,150.12,150.06,6.6639]
[1719537939704,22.7865656,150.13,150.07,6.6635]
[1719537939896,16.1254656,150.13,149.98,1.33242361]
[1719537940118,6.6622,150.1,150.04,6.6644]
[1719537940302,6.6627,150.09,150.04,6.6647]
[1719537940613,6.6631,150.08,149.98,1.33250062]
[1719537940818,6.6626,150.09,150.03,6.6652]
[1719537940995,6.6626,150.09,150.04,1.33250605]
[1719537941397,16.1254656,150.13,150.04,1.33250605]
[1719537941699,33.3121,150.1,149.98,1.33250572]
[1719537941899,20.0,150.09,149.98,1.33250572]
[1719537942134,6.6643,150.06,150.0,6.6665]
[1719537942435,6.6661,150.02,149.96,16.657]
[1719537942606,63.6997,150.07,149.92,6.6698]
[1719537942607,16.6622,150.04,149.92,6.6698]
[1719537942797,20.0,150.03,149.93,16.657]
[1719537942998,6.6688,149.95,149.93,16.657]
[1719537943222,20.0,150.03,149.91,6.4972]
[1719537943534,20.0,150.03,149.9,23.328]
[1719537943535,6.6687,149.96,149.9,23.328]
[1719537943830,6.6672,149.99,149.85,6.4331]
[1719537944027,47.04,150.03,149.85,6.4331]
[1719537944028,6.6683,149.97,149.92,6.6702]
[1719537944213,6.6673,149.99,149.94,6.6692]
[1719537944407,63.7043,150.03,149.94,6.6692]
[1719537944606,6.6698,149.93,149.87,23.328]
[1719537944812,16.6685,149.99,149.85,6.4331]
[1719537944813,6.6703,149.92,149.85,6.4331]
[1719537945040,6.6707,149.91,149.86,6.6727]
[1719537945324,16.6708,149.97,149.85,6.4331]
[1719537945506,20.0,149.96,149.87,6.672]
[1719537945861,6.6694,149.94,149.88,8.00597965]
[1719537946131,20.0,149.96,149.85,6.4331]
[1719537946302,20.0,149.99,149.85,6.4331]
[1719537946503,6.6694,149.94,149.85,6.4331]
[1719537947028,16.6701,149.97,149.84,20.0]
[1719537947225,16.6701,149.97,149.81,1.0867]
[1719537947226,20.0,149.96,149.81,1.0867]
[1719537947433,20.0,149.96,149.83,20.0]
[1719537947619,6.668,149.97,149.84,20.0]
[1719537947809,6.668,149.97,149.91,6.6705]
[1719537948009,6.668,149.97,149.84,20.0]
[1719537948010,16.6669,150.0,149.84,20.0]
[1719537948525,6.6689,149.95,149.9,6.6709]
[1719537948727,6.6692,149.95,149.88,6.6716]
[1719537949026,6.6696,149.94,149.88,6.6719]
[1719537949233,6.6696,149.94,149.89,6.6714]
[1719537949428,6.6696,149.94,149.88,6.6719]
[1719537949643,6.6697,149.93,149.88,6.6719]
[1719537949843,6.6703,149.92,149.83,20.0]
[1719537950057,33.3383,149.98,149.81,2.96277192]
[1719537950347,16.6747,149.93,149.81,1.0867]
[1719537950542,20.0,149.92,149.81,2.42114875]
[1719537950847,20.0,149.92,149.81,1.0867]
[1719537951144,6.6711,149.9,149.84,6.6734]
[1719537951351,6.6717,149.89,149.84,6.6734]
[1719537952127,20.0,149.92,149.81,1.0867]
[1719537952341,6.6711,149.9,149.84,6.6733]
[1719537952859,6.6716,149.89,149.83,6.6741]
[1719537953225,6.6711,149.9,149.84,6.6733]
[1719537953437,26.67,149.93,149.88,6.6719]
[1719537953753,6.6692,149.95,149.81,2.42078995]
[1719537954058,16.6684,149.99,149.81,22.42078995]
[1719537954246,6.6709,149.91,149.85,6.6731]
[1719537954427,33.3399,149.98,149.81,1.0867]
[1719537954738,6.6703,149.92,149.87,6.6721]
[1719537954930,63.7071,150.0,149.81,2.42099137]
[1719537955259,63.7071,150.0,149.9,6.6709]
[1719537955260,6.669,149.95,149.9,6.6709]
[1719537955619,6.669,149.95,149.89,6.6714]
[1719537955828,6.6694,149.94,149.89,6.6714]
[1719537956234,6.6698,149.93,149.81,2.42099137]
[1719537956435,6.6694,149.94,149.88,6.6716]
[1719537956641,16.6694,149.98,149.87,6.6723]
[1719537956849,16.6694,149.98,149.81,1.0867]
[1719537956850,20.0,149.97,149.81,1.0867]
[1719537957055,20.0,149.97,149.84,6.6737]
[1719537957056,6.6716,149.89,149.84,6.6737]
[1719537957243,16.6739,149.94,149.81,1.0867]
[1719537957244,6.6722,149.88,149.82,6.6743]
[1719537957442,6.6722,149.88,149.83,6.674]
[1719537957736,6.6724,149.88,149.82,6.6745]
[1719537958054,6.6724,149.88,149.81,1.0867]
[1719537958055,6.6718,149.89,149.84,6.6734]
[1719537958241,6.6718,149.89,149.85,1.33437842]
[1719537958739,6.6721,149.88,149.82,6.6745]
[1719537958939,20.0,149.97,149.83,1.33448157]
[1719537959443,6.6703,149.92,149.83,1.3341184]
[1719537959641,6.6703,149.92,149.82,6.6745]
[1719537959838,6.6703,149.92,149.87,6.6722]
[1719537960036,16.6716,149.96,149.82,6.6745]
[1719537960236,6.6702,149.92,149.87,6.672]
[1719537960443,16.6716,149.96,149.86,6.6725]
[1719537960637,16.6716,149.96,149.82,6.6745]
[1719537960638,6.6701,149.93,149.82,6.6745]
[1719537960835,36.6683,149.99,149.82,6.6745]
[1719537961040,20.0,149.99,149.82,6.6745]
[1719537961359,6.6717,149.89,149.82,6.6745]
[1719537961543,33.338,149.98,149.82,6.6745]
[1719537961744,16.6752,149.93,149.82,6.6745]
[1719537961939,16.671,149.97,149.82,6.6745]
[1719537962144,6.6702,149.92,149.87,6.6723]
[1719537962342,6.6703,149.92,149.87,6.672]
[1719537962546,16.6728,149.95,149.85,6.673]
[1719537962750,20.0,149.94,149.86,6.6728]
[1719537962933,6.6699,149.93,149.87,6.672]
[1719537963127,6.6704,149.92,149.82,6.6745]
[1719537963356,20.0,149.94,149.83,1.33416659]
[1719537963653,16.6757,149.92,149.82,6.6745]
[1719537963952,20.0,149.91,149.83,1.33447295]
[1719537964155,6.6721,149.88,149.83,6.6738]
[1719537964453,16.6727,149.95,149.84,1.33445146]
[1719537964659,6.671,149.91,149.86,6.6728]
[1719537964858,20.0,149.94,149.87,8.00660205]
[1719537965060,20.0,149.94,149.87,1.33430205]
[1719537965358,6.6707,149.91,149.87,1.33430205]
[1719537965543,6.6711,149.9,149.87,1.33430205]
[1719537966650,20.0,149.97,149.84,6.6736]
[1719537966651,6.6715,149.89,149.84,6.6736]
[1719537967158,6.6711,149.9,149.85,6.6733]
[1719537968562,6.6707,149.91,149.86,6.6727]
[1719537968763,16.6738,149.94,149.85,6.6732]
[1719537968764,6.6712,149.9,149.85,6.6732]
[1719537968961,16.6738,149.94,149.82,6.6745]
[1719537969142,6.6706,149.91,149.87,6.6724]
[1719537969759,33.3308,150.02,149.84,15.2838]
[1719537969972,39.9966,150.06,149.86,6.3587]
[1719537969973,6.6674,149.99,149.86,6.3587]
[1719537970144,26.6676,149.98,149.86,6.3587]
[1719537970457,20.0,149.98,149.86,6.3587]
[1719537970665,6.6667,150.0,149.95,6.6685]
[1719537971039,6.5925,150.04,149.87,1.33347739]
[1719537971271,6.6665,150.01,149.95,6.6684]
[1719537971444,6.6665,150.01,149.96,6.6683]
[1719537971840,15.4394,150.06,149.88,6.3587]
[1719537972061,6.1187,150.08,149.9,15.2838]
[1719537972256,33.3235,150.05,149.9,15.2838]
[1719537972441,6.668,149.97,149.92,6.6698]
[1719537972642,6.6676,149.98,149.93,6.6696]
[1719537972956,16.6626,150.04,149.94,1.33366606]
[1719537973262,6.6673,149.99,149.91,1.33355667]
[1719537973460,6.6673,149.99,149.93,6.6696]
[1719537973851,20.0,149.98,149.88,6.3587]
[1719537974046,20.0,149.98,149.89,1.04325024]